bitfinex-derivatives/quotes_ETHF0:USTF0_20241018
["timestamp","ask_amount","ask_price","bid_price","bid_amount"]
[1729268326676,0.37886,2639.4,2639.3,0.37886]
[1729268327181,0.37884,2639.5,2639.4,0.37884]
[1729268327484,0.37884,2639.5,2639.1,0.94724]
[1729268327485,5.7093,2639.6,2639.5,0.37884]
[1729268327781,5.7093,2639.6,2639.1,0.37889]
[1729268327782,0.37889,2639.2,2639.1,0.37889]
[1729268328680,0.37889,2639.1,2639.0,2.9122]
[1729268328979,0.94711,2639.5,2639.0,2.5333]
[1729268329183,0.37889,2639.1,2639.0,2.9122]
[1729268329689,0.37889,2639.1,2639.0,2.5333]
[1729268329984,3.2078,2639.3,2638.6,3.2078]
[1729268330173,4.5393,2639.0,2638.2,3.2078]
[1729268330373,1.66653,2638.9,2638.4,2.20448]
[1729268330577,1.2876,2638.9,2638.8,0.37894]
[1729268330885,0.37889,2639.2,2639.1,0.37889]
[1729268331084,0.37889,2639.1,2639.0,0.3789]
[1729268331772,3.2078,2639.3,2638.8,1.2693]
[1729268331978,0.3789,2639.1,2639.0,0.3789]
[1729268332480,0.37892,2639.0,2638.9,0.37891]
[1729268332783,0.3789,2639.1,2639.0,0.3789]
[1729268333282,3.2078,2639.3,2638.8,1.2693]
[1729268333479,3.2078,2639.3,2638.8,4.9093]
[1729268333679,0.37891,2639.1,2639.0,0.3789]
[1729268333890,0.37891,2639.0,2638.9,0.37891]
[1729268335272,0.94721,2639.2,2638.8,1.2693]
[1729268335474,0.37892,2638.9,2638.8,1.64824]
[1729268336002,0.37892,2639.0,2638.9,0.37891]
[1729268336284,0.37892,2639.0,2638.9,3.33891]
[1729268336783,0.3789,2639.2,2639.1,0.37888]
[1729268338481,0.37889,2639.2,2639.1,0.37888]
[1729268339083,0.37889,2639.2,2639.0,1.2597]
[1729268339084,4.1791,2639.4,2638.8,1.2693]
[1729268339382,4.1791,2639.4,2639.0,0.37889]
[1729268339383,0.3789,2639.1,2639.0,0.37889]
[1729268339682,0.37892,2639.0,2638.9,0.37891]
[1729268340281,4.18728923,2639.3,2638.8,4.2293]
[1729268340483,0.37892,2638.9,2638.8,1.64822]
[1729268340677,0.37892,2638.9,2638.8,1.64824]
[1729268340878,0.37896,2638.6,2638.5,3.58677]
[1729268341083,0.97948923,2639.0,2638.5,7.11525]
[1729268341293,0.97948923,2639.1,2639.0,0.37891]
[1729268341491,3.2078,2639.3,2639.0,0.37891]
[1729268341492,1.35835923,2639.3,2639.1,0.37889]
[1729268341794,0.37887,2639.3,2639.2,0.37888]
[1729268343386,0.37887,2639.3,2639.2,0.37886]
[1729268343593,2.19858923,2639.4,2639.1,1.2642]
[1729268343891,2.19858923,2639.4,2639.2,0.37887]
[1729268343892,0.37888,2639.3,2639.2,0.37887]
[1729268344190,0.97948923,2639.5,2639.1,1.2642]
[1729268344386,0.97948923,2639.5,2639.4,0.37885]
[1729268344594,1.35832923,2639.5,2639.4,0.37885]
[1729268344894,0.37885,2639.5,2639.4,0.37884]
[1729268345191,1.36059041,2639.5,2639.4,0.37884]
[1729268345390,3.2078,2639.6,2639.5,0.37884]
[1729268345391,4.18954041,2639.6,2639.5,0.37884]
[1729268345596,4.18954041,2639.6,2639.1,2.21143]
[1729268345777,0.37886,2639.4,2639.3,0.37885]
[1729268346086,1.36059041,2639.5,2639.4,0.37885]
[1729268346286,0.37885,2639.5,2639.4,0.37885]
[1729268346489,0.37887,2639.3,2639.2,0.37887]
[1729268346694,0.98174041,2639.5,2639.1,1.2642]
[1729268346893,1.36059041,2639.5,2639.1,1.2642]
[1729268347190,0.98170106,2640.0,2639.4,7.15599666]
[1729268347389,3.2078,2640.5,2639.9,3.2078]
[1729268347692,1.49749584,2640.4,2639.8,2.96]
[1729268347886,0.37874,2640.2,2640.1,2.96]
[1729268348903,1.308,2640.4,2640.1,2.96]
[1729268349285,0.37874,2640.2,2640.1,2.96]
[1729268349487,1.308,2640.4,2639.8,2.96]
[1729268349684,0.37876,2640.1,2639.8,2.96]
[1729268349985,0.37875,2640.1,2640.0,2.96]
[1729268350694,0.37874,2640.2,2640.0,2.96]
[1729268350895,0.37875,2640.1,2640.0,2.96]
[1729268351294,4.15465,2640.2,2639.7,3.2078]
[1729268351483,3.2078,2639.8,2639.4,2.96]
[1729268351791,2.4765,2639.7,2639.6,2.96]
[1729268352599,9.85111,2639.7,2639.6,2.96]
[1729268353087,8.2044,2639.7,2639.6,2.96]
[1729268353292,4.4164,2639.7,2639.6,3.33882]
[1729268353492,3.2078,2639.7,2639.6,3.33882]
[1729268354395,2.4923,2640.0,2639.6,2.96]
[1729268354590,2.4923,2640.0,2639.9,0.37878]
[1729268355787,2.4923,2640.0,2639.6,0.37882]
[1729268355788,0.37881,2639.7,2639.6,0.37882]
[1729268355989,0.3788,2639.8,2639.7,0.3788]
[1729268356192,0.37881,2639.7,2639.6,0.37881]
[1729268356690,0.3788,2639.8,2639.7,0.3788]
[1729268356892,0.3788,2639.8,2639.7,3.3388]
[1729268357092,0.3788,2639.8,2639.7,2.96]
[1729268357498,2.4923,2640.0,2639.7,2.96]
[1729268357794,2.4923,2640.0,2639.9,3.33878]
[1729268358001,1.2638,2640.0,2639.9,3.33878]
[1729268358399,1.64256,2640.0,2639.9,0.37878]
[1729268358598,1.2638,2640.0,2639.9,3.33878]
[1729268359699,3.2078,2640.3,2640.2,0.37874]
[1729268359902,3.2078,2640.3,2640.0,1.2559]
[1729268360093,0.37875,2640.1,2640.0,1.2559]
[1729268360398,0.37878,2639.9,2639.7,4.2492]
[1729268360598,2.6506,2640.2,2639.7,4.2492]
[1729268361094,0.37876,2640.1,2640.0,3.33876]
[1729268362510,1.73454,2640.2,2640.1,0.37875]
[1729268363199,1.3558,2640.2,2640.1,0.37875]
[1729268363800,3.2078,2640.3,2640.2,0.37874]
[1729268363999,3.58652,2640.3,2640.2,0.37874]
[1729268364198,3.58652,2640.3,2640.2,3.33874]
[1729268364199,3.2078,2640.3,2640.2,3.33874]
[1729268364594,1.2897,2640.7,2640.2,3.33874]
[1729268364901,1.2897,2640.7,2640.6,0.37868]
[1729268365899,1.66836,2640.7,2640.6,0.37868]
[1729268366201,1.2897,2640.7,2640.6,0.37868]
[1729268366906,3.2078,2641.0,2640.9,0.37863]
[1729268367217,3.58642,2641.0,2640.9,0.37863]
[1729268367502,3.2078,2641.0,2640.9,0.37863]
[1729268368206,0.37864,2640.9,2640.8,0.37863]
[1729268368395,3.58642,2641.0,2640.9,0.37863]
[1729268368596,3.2078,2641.0,2640.9,0.37863]
[1729268369500,3.2078,2641.0,2640.6,0.37867]
[1729268369501,0.37866,2640.8,2640.6,0.37867]
[1729268369701,0.94659,2640.9,2640.3,2.499]
[1729268370007,0.37867,2640.7,2640.5,0.37868]
[1729268370199,1.2388,2640.9,2640.5,2.96]
[1729268370502,3.2078,2641.0,2640.9,0.37863]
[1729268370708,3.58643,2641.0,2640.8,3.33864]
[1729268370904,3.58643,2641.0,2640.9,1.3361]
[1729268371495,3.58643,2641.0,2640.4,3.3387]
[1729268371496,0.37869,2640.5,2640.4,3.3387]
[1729268371709,0.37868,2640.6,2640.5,0.37869]
[1729268372197,0.94659,2640.9,2640.4,4.6748]
[1729268372198,0.37869,2640.5,2640.4,4.6748]
[1729268372398,0.37863,2641.0,2640.4,4.2961]
[1729268372597,0.9465,2641.2,2640.6,2.96]
[1729268372904,0.37862,2641.0,2640.9,2.96]
[1729268373305,0.37866,2640.7,2640.6,0.37868]
[1729268373505,0.37867,2640.7,2640.6,0.37867]
[1729268373812,0.37867,2640.7,2640.6,3.33867]
[1729268374704,0.37867,2640.7,2640.6,3.33868]
[1729268375413,0.94655,2641.1,2640.6,2.96]
[1729268375705,0.37866,2640.8,2640.7,0.37866]
[1729268376211,0.94654,2641.1,2640.6,2.96]
[1729268376405,0.94651,2641.2,2640.6,2.96]
[1729268376602,0.37866,2640.8,2640.7,0.37866]
[1729268376808,0.37866,2640.8,2640.7,3.33866]
[1729268377718,0.37869,2640.6,2640.5,2.96]
[1729268378297,0.37869,2640.6,2640.5,3.33869]
[1729268378502,0.37869,2640.6,2640.5,2.96]
[1729268378802,0.37867,2640.7,2640.6,0.37867]
[1729268379006,1.2806,2640.8,2640.7,0.37865]
[1729268379007,0.37866,2640.8,2640.7,0.37865]
[1729268379205,0.37865,2640.9,2640.8,0.37864]
[1729268379800,0.37865,2640.9,2640.6,2.96]
[1729268379801,0.37866,2640.8,2640.7,3.58645]
[1729268380002,0.37866,2640.8,2640.7,3.2078]
[1729268380406,0.37866,2640.8,2640.7,0.37866]
[1729268381303,3.2078,2640.9,2640.6,2.96]
[1729268381604,0.37866,2640.7,2640.6,3.33867]
[1729268383204,3.2078,2640.9,2640.6,2.96]
[1729268383409,0.37866,2640.7,2640.6,3.33866]
[1729268383610,0.37866,2640.8,2640.7,0.37865]
[1729268384608,3.2078,2640.9,2640.4,2.28287]
[1729268384609,0.37869,2640.6,2640.5,0.37867]
[1729268384812,3.2078,2640.9,2640.4,4.2961]
[1729268385000,0.37869,2640.6,2640.5,0.37868]
[1729268385411,0.94664,2640.8,2640.4,4.2961]
[1729268385611,0.94664,2640.8,2640.4,1.3361]
[1729268385612,0.37869,2640.5,2640.4,1.3361]
[1729268385805,0.94672,2640.6,2640.0,3.2078]
[1729268386005,0.37873,2640.3,2640.2,0.37872]
[1729268386605,0.94677,2640.5,2640.1,1.3014]
[1729268387107,2.5703,2640.7,2640.2,2.96]
[1729268387309,0.3787,2640.5,2640.4,0.37869]
[1729268387908,2.5703,2640.7,2640.2,2.96]
[1729268388113,0.37872,2640.4,2640.3,0.37871]
[1729268388612,2.5703,2640.7,2640.2,2.96]
[1729268388818,0.37872,2640.4,2640.3,0.37871]
[1729268390125,0.94671,2640.6,2640.2,2.96]
[1729268390419,0.37872,2640.3,2640.2,0.37873]
[1729268391524,0.37872,2640.4,2640.3,0.37871]
[1729268392313,0.94671,2640.6,2640.2,2.96]
[1729268392518,0.37872,2640.3,2640.2,3.33872]
[1729268393016,0.37872,2640.3,2640.2,2.96]
[1729268393426,0.37872,2640.3,2640.2,3.33874]
[1729268393821,0.37874,2640.2,2640.1,1.68014]
[1729268394321,0.37873,2640.3,2640.2,0.37872]
[1729268395118,0.37873,2640.3,2640.2,3.33872]
[1729268395521,0.37873,2640.3,2640.2,2.96]
[1729268396423,0.37873,2640.3,2640.2,3.33874]
[1729268396820,3.2078,2640.6,2640.5,0.37869]
[1729268397019,0.37865,2640.8,2640.6,0.37868]
[1729268397218,0.37865,2640.8,2640.7,2.96]
[1729268397424,1.3061,2641.0,2640.7,2.96]
[1729268398020,0.37865,2640.8,2640.7,2.96]
[1729268398527,0.37865,2640.8,2640.7,3.33866]
[1729268398720,0.37865,2640.8,2640.7,2.96]
[1729268398924,0.37868,2640.6,2640.4,3.3387]
[1729268399630,0.37869,2640.5,2640.4,2.96]
[1729268399925,1.2603,2640.5,2640.4,3.33871]
[1729268400133,1.2603,2640.5,2640.4,2.96]
[1729268400330,1.2603,2640.5,2640.4,3.33871]
[1729268403336,0.37866,2640.8,2640.7,0.37866]
[1729268403927,1.60135,2640.9,2640.8,0.37865]
[1729268404628,1.2227,2640.9,2640.8,0.37865]
[1729268404932,1.60133,2640.9,2640.8,0.37865]
[1729268405737,1.2227,2640.9,2640.8,0.37865]
[1729268406227,3.18542762,2640.9,2640.8,0.37865]
[1729268406432,3.18542762,2640.9,2640.8,3.33865]
[1729268406623,1.96272762,2640.9,2640.8,3.33865]
[1729268407024,5.48661952,2641.1,2641.0,0.37862]
[1729268407025,4.99594762,2641.1,2641.0,0.37862]
[1729268407526,3.26452762,2641.1,2641.0,3.33862]
[1729268408227,1.96272762,2641.2,2641.1,0.37861]
[1729268408428,2.45340952,2641.3,2641.0,2.96]
[1729268408429,2.34131762,2641.3,2641.0,2.96]
[1729268408633,1.47770648,2641.1,2641.0,0.37862]
[1729268408841,1.47770648,2641.2,2641.1,0.37861]
[1729268409335,1.47762453,2641.4,2641.1,4.16501]
[1729268409539,1.47762453,2641.4,2641.3,0.37858]
[1729268409833,1.47762453,2641.4,2641.3,3.33858]
[1729268410056,1.96272762,2641.6,2641.5,0.37855]
[1729268410331,5.54902762,2641.9,2641.8,0.37851]
[1729268410534,5.17052762,2641.9,2641.8,0.37851]
[1729268410931,1.96272762,2641.9,2641.8,0.37851]
[1729268411132,4.59892762,2642.1,2641.7,2.96]
[1729268411332,1.2857,2642.1,2642.0,3.33848]
[1729268411634,1.66416,2642.1,2642.0,2.96]
[1729268412134,1.2857,2642.1,2642.0,3.33848]
[1729268412330,3.2078,2642.3,2642.0,3.7848]
[1729268412524,3.2078,2642.3,2642.1,1.3221]
[1729268412735,0.37845,2642.2,2642.1,1.3221]
[1729268413129,1.61335,2642.2,2642.1,1.3221]
[1729268414334,1.2349,2642.2,2641.9,1.62878]
[1729268414542,1.2349,2642.2,2641.8,6.5463]
[1729268414543,0.37849,2642.0,2641.8,6.5463]
[1729268414831,0.37849,2641.9,2641.8,3.2078]
[1729268415036,3.2078,2642.0,2641.3,6.1678]
[1729268415224,2.1101,2641.8,2641.3,6.1678]
[1729268415426,0.37856,2641.5,2641.3,6.1678]
[1729268415635,0.37855,2641.5,2641.4,0.37856]
[1729268416135,1.2252,2641.7,2641.5,0.37854]
[1729268416136,0.37854,2641.6,2641.5,0.37854]
[1729268416333,5.17052762,2642.3,2641.5,2.96]
[1729268416539,1.0402,2642.2,2642.1,3.33846]
[1729268416931,0.37843,2642.4,2642.3,0.37843]
[1729268417234,3.2078,2642.6,2642.2,1.0883]
[1729268417235,4.248,2642.6,2642.2,1.0883]
[1729268417434,4.248,2642.6,2642.3,4.0819]
[1729268417639,0.37842,2642.5,2642.3,4.46033]
[1729268418032,0.37842,2642.5,2642.4,0.37842]
[1729268418843,0.37841,2642.5,2642.4,0.37842]
[1729268419139,0.37842,2642.4,2642.3,4.46033]
[1729268419443,0.37842,2642.5,2642.4,0.37842]
[1729268420636,0.37842,2642.4,2642.3,1.1219]
[1729268420950,4.248,2642.6,2642.1,2.96]
[1729268421232,0.37845,2642.2,2642.1,3.33846]
[1729268422035,0.37846,2642.1,2642.0,1.0401]
[1729268422236,0.37848,2642.0,2641.9,0.37848]
[1729268422429,3.2078,2642.3,2641.7,4.37861]
[1729268422430,0.37851,2641.8,2641.7,4.37861]
[1729268422739,2.1452,2642.2,2641.7,2.96]
[1729268422934,1.0757,2642.1,2641.9,2.96]
[1729268423137,0.37848,2642.0,2641.9,3.33848]
[1729268423541,1.45416,2642.1,2642.0,0.37848]
[1729268423840,1.0782,2642.2,2642.0,1.49168]
[1729268424144,1.0782,2642.2,2642.1,3.33846]
[1729268424145,0.37845,2642.2,2642.1,3.33846]
[1729268424333,0.37845,2642.2,2642.1,2.96]
[1729268424531,1.0757,2642.4,2642.1,2.96]
[1729268424842,1.0757,2642.4,2642.1,3.33846]
[1729268424843,0.37845,2642.2,2642.1,3.33846]
[1729268425035,0.37845,2642.2,2642.1,2.96]
[1729268425341,0.37845,2642.2,2642.1,3.33846]
[1729268425539,1.0757,2642.4,2642.2,0.37844]
[1729268425540,0.37844,2642.3,2642.2,0.37844]
[1729268425933,1.45413,2642.4,2642.3,0.37843]
[1729268426133,3.2078,2642.6,2642.1,2.96]
[1729268426336,3.2078,2642.6,2642.3,3.33842]
[1729268426337,0.37842,2642.4,2642.3,3.33842]
[1729268426834,0.37842,2642.5,2642.4,0.37841]
[1729268429243,6.31078,2642.9,2642.6,0.37838]
[1729268429244,0.37839,2642.7,2642.6,0.37838]
[1729268429446,2.51857,2642.8,2642.7,0.37838]
[1729268430238,3.2078,2642.9,2642.6,2.96]
[1729268430552,0.37835,2643.0,2642.9,0.37833]
[1729268430853,1.98978,2643.2,2642.7,0.37836]
[1729268430854,0.37837,2642.8,2642.7,0.37836]
[1729268431042,1.50825,2642.9,2642.8,0.37836]
[1729268432341,4.2518,2643.2,2642.8,2.96]
[1729268432547,1.044,2643.2,2643.1,3.33832]
[1729268432749,1.044,2643.2,2643.1,0.37832]
[1729268433145,3.2078,2643.9,2643.1,9.951]
[1729268433347,0.37827,2643.5,2643.4,2.96]
[1729268433554,0.37827,2643.5,2643.2,4.0361]
[1729268433747,1.0681,2643.7,2643.2,4.0361]
[1729268433944,0.37826,2643.6,2643.5,0.37825]
[1729268434256,0.37825,2643.6,2643.5,1.0317]
[1729268434748,0.37825,2643.6,2643.5,1.40996]
[1729268434953,5.4086,2643.8,2643.5,1.0317]
[1729268435147,0.37824,2643.7,2643.6,0.37824]
[1729268435348,5.4086,2643.8,2643.5,1.0317]
[1729268435559,5.78682,2643.8,2643.7,3.33823]
[1729268435855,4.71872,2643.8,2643.7,3.33823]
[1729268436056,0.37823,2643.7,2643.6,0.37824]
[1729268436261,0.37823,2643.7,2643.5,3.9917]
[1729268436262,4.71873,2643.8,2643.7,0.37823]
[1729268436954,4.71873,2643.8,2643.2,2.02185]
[1729268436955,0.94559,2643.7,2642.9,0.94587]
[1729268437148,6.40353,2643.6,2643.0,2.96]
[1729268437349,0.37831,2643.2,2643.1,1.49071]
[1729268437551,4.33,2643.6,2643.1,1.1124]
[1729268437755,0.37828,2643.4,2643.3,3.33828]
[1729268437955,0.37828,2643.5,2643.4,0.37827]
[1729268438161,0.37828,2643.4,2643.3,3.33828]
[1729268438356,3.2078,2643.6,2643.3,3.33828]
[1729268438548,3.2078,2643.6,2643.3,2.96]
[1729268438963,0.37828,2643.4,2643.3,3.33829]
[1729268439157,0.37827,2643.5,2643.4,0.37828]
[1729268439353,1.1222,2643.7,2643.3,3.33829]
[1729268439661,0.37828,2643.4,2643.3,2.96]
[1729268439860,0.94573,2643.4,2642.8,6.1678]
[1729268440056,0.37832,2643.1,2643.0,0.37833]
[1729268440254,1.0404,2643.3,2642.9,1.1228]
[1729268440560,0.37833,2643.1,2643.0,0.37833]
[1729268440953,0.37831,2643.2,2643.1,0.37831]
[1729268441156,1.4187,2643.3,2643.2,0.37831]
[1729268441357,1.0404,2643.3,2643.1,2.96]
[1729268441553,1.0404,2643.3,2642.9,1.1228]
[1729268441761,1.0404,2643.3,2642.9,1.50114]
[1729268441762,0.37833,2643.0,2642.9,1.50114]
[1729268442263,1.03,2643.2,2642.9,1.50114]
[1729268442560,0.37833,2643.0,2642.9,1.50114]
[1729268442760,0.94587,2643.0,2642.4,6.54621]
[1729268442953,0.37841,2642.5,2642.4,6.3765896]
[1729268443261,1.047,2642.9,2642.4,6.1678]
[1729268443455,0.3784,2642.6,2642.5,0.3784]
[1729268443658,0.37841,2642.5,2642.4,6.54621]
[1729268443852,0.37841,2642.6,2642.5,0.3784]
[1729268444158,1.0485,2642.7,2642.4,6.1678]
[1729268444360,1.42689,2642.7,2642.6,0.37839]
[1729268444663,0.3784,2642.6,2642.5,0.37839]
[1729268444962,0.37841,2642.5,2642.4,3.2078]
[1729268445156,0.37841,2642.5,2642.4,3.58622]
[1729268445847,1.0485,2642.7,2642.4,3.2078]
[1729268446054,0.37841,2642.5,2642.4,3.58621]
[1729268446464,0.37841,2642.5,2642.4,0.37841]
[1729268447056,0.37841,2642.5,2642.4,0.37842]
[1729268447257,0.37841,2642.5,2642.4,3.33842]
[1729268447961,0.37839,2642.6,2642.3,0.37842]
[1729268448258,1.0485,2642.7,2642.2,3.17353407]
[1729268448463,1.0485,2642.7,2642.5,2.96]
[1729268448654,0.37839,2642.6,2642.5,3.3384]
[1729268449066,1.0485,2642.7,2642.6,0.37839]
[1729268450763,7.3848,2643.5,2642.8,0.94591]
[1729268451064,2.1649,2643.4,2643.1,2.96]
[1729268451262,2.54319,2643.4,2643.3,0.37829]
[1729268451451,0.37831,2643.2,2643.1,0.37832]
[1729268451656,2.1649,2643.4,2642.9,3.2078]
[1729268451963,1.0358,2643.1,2642.9,3.2078]
[1729268452256,0.37833,2643.0,2642.9,3.2078]
[1729268452465,1.0358,2643.1,2642.6,7.2299]
[1729268452648,0.37838,2642.7,2642.6,4.64828]
[1729268452856,0.37838,2642.7,2642.6,4.64829]
[1729268453063,1.0626,2642.9,2642.6,4.64829]
[1729268453064,1.44887,2642.8,2642.7,0.37837]
[1729268453256,1.0705,2642.8,2642.7,0.37837]
[1729268453558,1.0626,2642.9,2642.8,0.37836]
[1729268454056,1.44095,2642.9,2642.8,0.37836]
[1729268454257,1.0626,2642.9,2642.8,0.37836]
[1729268456254,1.44095,2642.9,2642.8,0.37836]
[1729268456454,1.0626,2642.9,2642.8,0.37836]
[1729268457463,1.44095,2642.9,2642.8,0.37836]
[1729268457770,0.37836,2642.8,2642.7,0.37837]
[1729268458759,0.37836,2642.8,2642.6,1.0621]
[1729268458760,1.44096,2642.9,2642.8,0.37836]
[1729268458959,0.37837,2642.8,2642.7,0.37836]
[1729268459849,1.44096,2642.9,2642.8,0.37836]
[1729268460065,1.0626,2642.9,2642.8,3.33836]
[1729268460957,3.2078,2643.3,2642.9,0.94588]
[1729268461153,3.2078,2643.3,2643.2,0.37831]
[1729268461359,3.2078,2643.3,2643.2,3.33831]
[1729268461662,0.37831,2643.2,2643.1,0.37831]
[1729268461861,1.017,2643.2,2642.8,3.2078]
[1729268462062,0.37835,2642.9,2642.8,3.58616]
[1729268462259,1.96279,2643.2,2642.6,2.173]
[1729268462260,1.017,2643.2,2642.6,2.173]
[1729268462455,0.37836,2642.9,2642.8,0.37836]
[1729268462658,0.37834,2643.0,2642.9,0.37834]
[1729268462857,0.37836,2642.9,2642.8,0.37835]
[1729268463061,0.37834,2643.0,2642.9,0.37833]
[1729268463658,1.017,2643.2,2643.0,0.37832]
[1729268463659,0.37833,2643.1,2643.0,0.37832]
[1729268464176,1.017,2643.2,2642.7,2.96]
[1729268464465,0.37836,2642.9,2642.8,0.37835]
[1729268464662,1.06,2643.0,2642.7,0.37837]
[1729268464663,0.37838,2642.8,2642.7,0.37837]
[1729268464874,1.0513,2642.9,2642.5,3.2078]
[1729268465067,0.37839,2642.6,2642.5,3.2078]
[1729268465461,0.37839,2642.6,2642.2,3.58624]
[1729268465462,0.37843,2642.3,2642.2,3.58624]
[1729268465662,1.058,2642.5,2642.2,3.2078]
[1729268465871,1.42973,2642.4,2642.3,0.37842]
[1729268466167,1.0513,2642.4,2642.3,0.37842]
[1729268466365,1.058,2642.5,2642.4,0.37842]
[1729268466672,0.37839,2642.6,2642.5,0.37839]
[1729268466865,0.37841,2642.5,2642.4,1.0451]
[1729268467065,0.37843,2642.3,2642.2,3.58623]
[1729268467271,0.37843,2642.3,2642.2,3.2078]
[1729268467464,1.36218433,2642.3,2642.2,3.2078]
[1729268467769,0.37843,2642.3,2642.2,3.2078]
[1729268468268,0.37848,2642.1,2642.0,0.37847]
[1729268468868,0.37849,2642.0,2641.9,0.37848]
[1729268469069,1.36150612,2642.0,2641.9,0.37848]
[1729268470470,0.37849,2642.0,2641.9,0.37848]
[1729268470875,1.36150612,2642.0,2641.9,0.37848]
[1729268471074,0.37849,2641.9,2641.8,3.3385]
[1729268471277,0.37853,2641.7,2641.6,0.37853]
[1729268471474,2.42048829,2642.0,2641.7,0.37852]
[1729268471475,2.0230231,2641.8,2641.7,0.37852]
[1729268471679,0.9824231,2642.1,2642.0,0.37848]
[1729268471874,3.2078,2642.2,2642.1,0.37846]
[1729268473275,3.2078,2642.2,2642.1,0.59052582]
[1729268473480,1.082,2642.5,2642.4,0.37842]
[1729268473782,1.082,2642.5,2642.3,0.37843]
[1729268473980,0.37846,2642.2,2642.1,0.37845]
[1729268474382,0.37846,2642.2,2642.0,2.96]
[1729268474383,2.0785231,2642.4,2641.8,5.53687028]
[1729268474680,0.9824231,2642.3,2641.8,4.303]
[1729268474880,0.37848,2642.0,2641.9,0.37848]
[1729268475086,0.37848,2642.0,2641.8,4.303]
[1729268475087,0.37849,2641.9,2641.8,4.6815]
[1729268476071,2.0367231,2642.2,2641.6,0.21302376]
[1729268476273,0.37853,2641.6,2641.5,4.2322]
[1729268476487,0.37853,2641.7,2641.6,0.37853]
[1729268476681,2.0815231,2641.9,2641.6,2.96]
[1729268476881,0.9824231,2642.1,2641.6,2.96]
[1729268477078,0.9824231,2642.1,2641.7,0.9463]
[1729268477276,0.37848,2642.0,2641.9,0.37848]
[1729268478884,3.5112831,2642.2,2642.1,0.37846]
[1729268479377,0.37846,2642.2,2642.1,0.37846]
[1729268480977,5.2893231,2642.3,2642.2,0.37845]
[1729268480978,4.3069,2642.3,2642.2,0.37845]
[1729268481379,3.2078,2642.3,2642.2,0.37845]
[1729268481879,3.58623,2642.3,2642.2,0.37845]
[1729268482073,3.58623,2642.3,2642.0,1.0262]
[1729268482074,3.2078,2642.3,2642.0,1.0262]
[1729268482274,0.37849,2641.9,2641.8,3.58629]
[1729268483178,0.37849,2641.9,2641.8,3.2078]
[1729268483379,0.37849,2641.9,2641.8,3.58631]
[1729268483774,0.37849,2641.9,2641.8,3.2078]
[1729268484000,0.37849,2641.9,2641.8,3.58631]
[1729268484280,1.3609131,2641.9,2641.8,3.2078]
[1729268484480,0.37849,2641.9,2641.8,3.2078]
[1729268484783,0.37849,2641.9,2641.5,1.39095]
[1729268484784,0.37853,2641.6,2641.5,1.39095]
[1729268485978,1.36069762,2641.7,2641.6,0.37853]
[1729268486281,0.37852,2641.8,2641.7,0.37852]
[1729268486482,1.36069762,2641.8,2641.7,0.37852]
[1729268486686,0.37852,2641.8,2641.7,0.37852]
[1729268487980,0.98217762,2641.9,2641.5,4.91877]
[1729268488186,0.98217762,2641.9,2641.8,0.37851]
[1729268488187,1.36068762,2641.9,2641.8,0.37851]
[1729268488877,0.37852,2641.8,2641.7,0.37851]
[1729268489479,0.98217762,2641.9,2641.5,1.95877]
[1729268489685,1.36067762,2641.9,2641.8,0.37851]
[1729268489885,0.3785,2641.9,2641.8,0.37851]
[1729268490183,4.69019,2642.0,2641.9,0.37849]
[1729268490387,1.48239,2642.0,2641.9,0.37849]
[1729268490782,0.3785,2641.9,2641.8,0.37849]
[1729268491179,1.48238,2642.0,2641.9,0.37849]
[1729268491581,2.45384762,2642.1,2641.7,3.9063]
[1729268491788,1.47167,2642.1,2642.0,0.37848]
[1729268492282,1.0932,2642.1,2642.0,0.37848]
[1729268492473,2.09967762,2642.4,2642.0,2.96]
[1729268492676,0.37845,2642.2,2642.1,1.43855]
[1729268493485,2.47809762,2642.4,2642.3,0.37843]
[1729268493877,1.49592,2642.4,2642.3,0.37843]
[1729268494491,0.37845,2642.2,2642.1,1.43855]
[1729268494680,0.37845,2642.2,2642.1,1.0601]
[1729268494988,1.36063762,2642.2,2642.1,0.37846]
[1729268495186,1.36063762,2642.2,2641.9,1.0621]
[1729268495187,0.37846,2642.1,2642.0,1.43857]
[1729268495687,1.36063762,2642.2,2642.1,0.37846]
[1729268496287,0.37845,2642.2,2642.1,0.37846]
[1729268496881,5.25847762,2642.3,2642.0,1.0601]
[1729268497187,0.37846,2642.2,2642.1,0.37845]
[1729268497885,0.37846,2642.1,2642.0,1.43857]
[1729268498092,0.37846,2642.1,2641.7,3.41751451]
[1729268498093,1.1047,2642.1,2641.7,3.41751451]
[1729268498383,0.3785,2641.9,2641.8,0.37849]
[1729268498583,2.95168762,2642.0,2641.4,3.42449577]
[1729268498791,0.37853,2641.7,2641.6,0.37852]
[1729268498984,0.37855,2641.6,2641.5,0.37854]
[1729268499798,0.37854,2641.6,2641.5,0.37854]
[1729268500586,1.36070762,2641.7,2641.6,0.37853]
[1729268500888,0.98217762,2641.7,2641.4,4.2364]
[1729268501083,0.98276308,2641.6,2641.4,4.2364]
[1729268501284,1.36130308,2641.6,2641.5,0.37854]
[1729268502179,0.37855,2641.5,2641.4,4.61495]
[1729268502386,1.36130308,2641.6,2641.5,0.37855]
[1729268503090,0.98276308,2641.6,2641.5,0.37855]
[1729268503401,1.36129308,2641.6,2641.5,0.37855]
[1729268503584,0.98276308,2641.6,2641.5,0.37855]